fUSD/lending_fUSD_20251215
["ID","MTS","AMOUNT","RATE_DAILY","PERIOD"]
[398510759,1765767040668,-500.0,0.00016726,2]
[398510760,1765767040678,-150.0,0.00016726,2]
[398510761,1765767040688,-1913.91910452,0.00016745,2]
[398510762,1765767040698,-500.0,0.00016745,2]
[398510763,1765767040708,-500.0,0.00016745,2]
[398510764,1765767040717,-860.70062564,0.00016773,2]
[398510765,1765767040749,-579.0,0.00016671,2]
[398510766,1765767040760,-294.09937436,0.00016773,2]
[398510767,1765767040770,-150.0,0.00016775,2]
[398510768,1765767040780,-500.0,0.00016775,2]
[398510769,1765767040791,-500.0,0.00016775,2]
[398510771,1765767040802,-3789.85725351,0.00016775,2]
[398510773,1765767040811,-642.0,0.00016794,2]
[398510775,1765767040821,-500.0,0.00016795,2]
[398510777,1765767040831,-500.0,0.00016798,2]
[398510779,1765767040840,-500.0,0.00016798,2]
[398510781,1765767040850,-500.0,0.00016798,2]
[398510783,1765767040860,-487.69626011,0.00016798,2]
[398510785,1765767040873,-12.30373989,0.00016798,2]
[398510787,1765767040883,-529.70946133,0.00016798,2]
[398510794,1765767040932,-202.11053867,0.00016798,2]
[398510796,1765767040942,-731.82,0.00016798,2]
[398510798,1765767040952,-600.0,0.00016799,2]
[398510800,1765767040961,-90638.8959725,0.00016799,2]
[398510802,1765767040973,-419.12847376,0.00016799,2]
[398510804,1765767040985,-6599.99875584,0.00016799,2]
[398510859,1765767041528,-1.7e-07,0.00016705,2]
[398510860,1765767041546,-495.68719811,0.00016705,2]
[398510861,1765767041559,-43.31280172,0.00016705,2]
[398510862,1765767041574,-416.56219828,0.00016738,2]
[398510863,1765767041599,-635.43780172,0.00016738,2]
[398510864,1765767041609,-315690.2649979,0.00016799,2]
[398510865,1765767041619,-513.93139164,0.00016809,2]
[398510866,1765767041629,-508.98134456,0.00016809,2]
[398510867,1765767041639,-1459.612,0.0001681,2]
[398510868,1765767041650,-12215.16279067,0.0001683,2]
[398510869,1765767041660,-1912.74005,0.0001683,2]
[398510870,1765767041670,-500.0,0.00016836,2]
[398510871,1765767041680,-456.0,0.00016836,2]
[398510872,1765767041692,-500.0,0.00016836,2]
[398510873,1765767041702,-500.0,0.00016836,2]
[398510874,1765767041712,-308.42619392,0.00016836,2]
[398510875,1765767041722,-426.53505463,0.00016836,2]
[398510876,1765767041733,-502.3168751,0.00016836,2]
[398510877,1765767041743,-153.17324755,0.00016836,2]
[398510878,1765767041752,-150.0,0.00016836,2]
[398510879,1765767041762,-3789.85725351,0.00016838,2]
[398510880,1765767041773,-500.0,0.00016863,2]
[398510881,1765767041783,-150.0,0.00016863,2]
[398510882,1765767041795,-200.0,0.00016864,2]
[398510883,1765767041804,-500.0,0.00016872,2]
[398510884,1765767041813,-500.0,0.00016872,2]
[398510885,1765767041825,-10000.0,0.00016873,2]
[398510886,1765767041837,-168.0,0.00016882,2]
[398510887,1765767041846,-4583.0,0.00016885,2]
[398510888,1765767041856,-8721.88160797,0.00016899,2]
[398510889,1765767042066,-500.0,0.00016899,2]
[398510890,1765767042076,-731.82,0.00016899,2]
[398510891,1765767042086,-2250.97177216,0.00016899,2]
[398510892,1765767042095,-861.2,0.000169,2]
[398510893,1765767042104,-6766.0798,0.000169,2]
[398510894,1765767042113,-15252.94691999,0.000169,2]
[398510895,1765767042123,-3789.85725351,0.000169,2]
[398510896,1765767042132,-2671.50653448,0.000169,2]
[398510897,1765767042141,-1236.89312992,0.000169,2]
[398510898,1765767042150,-1439.26830365,0.000169,2]
[398510899,1765767042160,-4662.0,0.000169,2]
[398510900,1765767042169,-150.9361352,0.00016902,2]
[398510901,1765767042178,-153.30440339,0.00016912,2]
[398510902,1765767042187,-500.0,0.00016912,2]
[398510903,1765767042196,-500.0,0.00016912,2]
[398510904,1765767042206,-510.0,0.00016921,2]
[398510905,1765767042215,-642.0,0.00016941,2]
[398510906,1765767042224,-1912.74006,0.0001695,2]
[398510907,1765767042234,-151.0,0.00016968,2]
[398510908,1765767042243,-158.212779,0.00016969,2]
[398510909,1765767042259,-500.0,0.00016973,2]
[398510910,1765767042269,-500.0,0.00016973,2]
[398510911,1765767042279,-169.17840548,0.00016973,2]
[398510912,1765767042290,-500.0,0.00016973,2]
[398510913,1765767042299,-500.0,0.00016973,2]
[398510915,1765767042307,-500.0,0.00016973,2]
[398510916,1765767042316,-500.38142603,0.00016973,2]
[398510917,1765767042325,-500.0,0.00016973,2]
[398510919,1765767042334,-500.0,0.00016973,2]
[398510921,1765767042343,-500.81562554,0.00016973,2]
[398510923,1765767042353,-500.0,0.00016973,2]
[398510924,1765767042363,-167.01915454,0.00016973,2]
[398510925,1765767042372,-500.0,0.00016973,2]
[398510926,1765767042381,-500.0,0.00016973,2]
[398510927,1765767042390,-500.0,0.00016973,2]
[398510928,1765767042399,-223.90146234,0.00016973,2]
[398510929,1765767042408,-500.0,0.00016973,2]
[398510930,1765767042417,-535.77849194,0.00016973,2]
[398510931,1765767042426,-250.59182654,0.00016973,2]
[398510932,1765767042436,-500.0,0.00016973,2]
[398510933,1765767042446,-502.19695313,0.00016973,2]
[398510934,1765767042455,-500.0,0.00016973,2]
[398510935,1765767042464,-500.0,0.00016973,2]
[398510936,1765767042474,-500.0,0.00016973,2]
[398510937,1765767042483,-500.0,0.00016973,2]
[398510938,1765767042492,-500.0,0.00016973,2]
[398510939,1765767042501,-500.0,0.00016973,2]
[398510940,1765767042511,-500.0,0.00016973,2]
[398510941,1765767042521,-500.0,0.00016973,2]
[398510942,1765767042530,-500.0,0.00016973,2]
[398510943,1765767042539,-315.21795353,0.00016973,2]
[398510944,1765767042548,-500.0,0.00016973,2]
[398510945,1765767042557,-500.0,0.00016973,2]
[398510946,1765767042567,-500.0,0.00016973,2]
[398510947,1765767042576,-515.49595078,0.00016973,2]
[398510948,1765767042584,-500.0,0.00016973,2]
[398510949,1765767042594,-457.14401155,0.00016973,2]
[398510950,1765767042603,-456.0,0.00016973,2]
[398510951,1765767042613,-500.0,0.00016973,2]
[398510952,1765767042622,-500.0,0.00016973,2]
[398510953,1765767042631,-150.0,0.00016973,2]
[398510954,1765767042640,-500.0,0.00016973,2]
[398510955,1765767042649,-150.0,0.00016973,2]
[398510956,1765767042658,-151.0,0.00016979,2]
[398510957,1765767042668,-1500.0,0.00016983,2]
[398510958,1765767042678,-1500.0,0.00016983,2]
[398510959,1765767042687,-1500.0,0.00016983,2]
[398510960,1765767042696,-1500.0,0.00016983,2]
[398510961,1765767042706,-1500.0,0.00016983,2]
[398510962,1765767042716,-1500.0,0.00016983,2]
[398510963,1765767042726,-1500.0,0.00016983,2]
[398510964,1765767042736,-1500.0,0.00016983,2]
[398510965,1765767042745,-500.0,0.00016986,2]
[398510966,1765767042755,-2135.0,0.00016986,2]
[398510967,1765767042764,-829.93707155,0.00016988,2]
[398510968,1765767042774,-151.0,0.00016989,2]
[398510969,1765767042784,-829.93707155,0.0001699,2]
[398510970,1765767042801,-829.93707155,0.0001699,2]
[398510971,1765767042810,-731.82,0.00016997,2]
[398510972,1765767042820,-731.82,0.00016997,2]
[398510973,1765767042831,-151.0,0.00016997,2]
[398510974,1765767042841,-5764.2665998,0.00016998,2]
[398510975,1765767042850,-402027.9987204,0.00016998,2]
[398510976,1765767042860,-2000.0,0.00016999,2]
[398510977,1765767042869,-189.528726,0.00016999,2]
[398510978,1765767042884,-5008.2454119,0.00016999,2]
[398510979,1765767042894,-2523.7699876,0.00016999,2]
[398510980,1765767042903,-500.0,0.00016999,2]
[398510981,1765767042913,-500.0,0.00016999,2]
[398510982,1765767042923,-500.0,0.00016999,2]
[398510983,1765767042931,-500.0,0.00016999,2]
[398510984,1765767042942,-500.0,0.00016999,2]
[398510985,1765767042951,-500.0,0.00016999,2]
[398510986,1765767042960,-500.0,0.00016999,2]
[398510987,1765767042970,-500.0,0.00016999,2]
[398510988,1765767042979,-188.46005207,0.00016999,2]
[398510989,1765767042987,-305.17878308,0.00016999,2]
[398510990,1765767042997,-422.94758095,0.00016999,2]
[398510992,1765767043007,-189.75866884,0.00016999,2]
[398510994,1765767043016,-500.0,0.00016999,2]
[398510996,1765767043025,-504.39679474,0.00016999,2]
[398510999,1765767043035,-300.0,0.00016999,2]
[398511000,1765767043044,-731.82,0.00016999,2]
[398511001,1765767043053,-731.82,0.00016999,2]
[398511002,1765767043062,-731.82,0.00016999,2]
[398511003,1765767043072,-731.82,0.00016999,2]
[398511004,1765767043081,-731.82,0.00016999,2]
[398511005,1765767043090,-731.82,0.00016999,2]
[398511007,1765767043099,-731.82,0.00016999,2]
[398511008,1765767043107,-731.82,0.00016999,2]
[398511009,1765767043116,-731.82,0.00016999,2]
[398511010,1765767043125,-731.82,0.00016999,2]
[398511011,1765767043134,-731.82,0.00016999,2]
[398511012,1765767043143,-731.82,0.00016999,2]
[398511013,1765767043152,-731.82,0.00016999,2]
[398511014,1765767043161,-731.82,0.00016999,2]
[398511015,1765767043170,-731.82,0.00016999,2]
[398511016,1765767043179,-731.82,0.00016999,2]
[398511017,1765767043188,-731.82,0.00016999,2]
[398511018,1765767043197,-731.88471982,0.00016999,2]
[398511019,1765767043206,-300.0,0.00016999,2]
[398511020,1765767043215,-500.0,0.00017,2]
[398511021,1765767043226,-150.0,0.00017,2]
[398511022,1765767043235,-4193534.40170584,0.00017,2]
[398511023,1765767043245,-727698.51476504,0.00017,2]
[398511024,1765767043255,-1000.0,0.00017,2]
[398511025,1765767043265,-1000.0,0.00017,2]
[398511026,1765767043274,-1000.0,0.00017,2]
[398511027,1765767043286,-1000.0,0.00017,2]
[398511028,1765767043300,-1000.0,0.00017,2]
[398511029,1765767043310,-1000.0,0.00017,2]
[398511030,1765767043320,-1000.0,0.00017,2]
[398511031,1765767043329,-1000.0,0.00017,2]
[398511032,1765767043340,-1000.0,0.00017,2]
[398511033,1765767043349,-1000.0,0.00017,2]
[398511034,1765767043359,-1000.0,0.00017,2]
[398511035,1765767043368,-1000.0,0.00017,2]
[398511036,1765767043377,-1000.0,0.00017,2]
[398511037,1765767043387,-1000.0,0.00017,2]
[398511038,1765767043398,-1000.0,0.00017,2]
[398511039,1765767043407,-1000.0,0.00017,2]
[398511040,1765767043416,-1000.0,0.00017,2]
[398511041,1765767043426,-1000.0,0.00017,2]
[398511042,1765767043435,-1000.0,0.00017,2]
[398511043,1765767043444,-1000.0,0.00017,2]
[398511044,1765767043454,-1000.0,0.00017,2]
[398511045,1765767043463,-1000.0,0.00017,2]
[398511046,1765767043472,-1000.0,0.00017,2]
[398511047,1765767043482,-1000.0,0.00017,2]
[398511048,1765767043500,-1000.0,0.00017,2]
[398511049,1765767043510,-1000.0,0.00017,2]
[398511050,1765767043519,-1000.0,0.00017,2]
[398511051,1765767043528,-1026.32552229,0.00017,2]
[398511052,1765767043537,-152.0,0.00017,2]
[398511053,1765767043546,-150.0,0.00017,2]
[398511054,1765767043556,-150.112,0.00017,2]
[398511055,1765767043567,-184.079,0.00017,2]
[398511056,1765767043576,-151.493,0.00017,2]
[398511057,1765767043592,-150.0,0.00017,2]
[398511058,1765767043601,-150.318,0.00017,2]
[398511059,1765767043610,-206.581,0.00017,2]
[398511060,1765767043619,-163.174,0.00017,2]
[398511061,1765767043629,-150.0,0.00017,2]
[398511062,1765767043638,-273.368,0.00017,2]
[398511063,1765767043647,-152.096,0.00017,2]
[398511064,1765767043656,-151.0,0.00017,2]
[398511065,1765767043666,-579.22,0.00017,7]
[398511066,1765767043675,-2000.0,0.00017,2]
[398511067,1765767043685,-726.10697459,0.00017,2]
[398511068,1765767043694,-279.93157894,0.00017,2]
[398511069,1765767043703,-200.0,0.00017,3]
[398511070,1765767043713,-968716.10354436,0.00017,2]
[398511072,1765767045639,-557.68819745,0.00017,2]
[398511073,1765767045656,-877.70217137,0.00017,2]
[398511074,1765767045673,-1111.48013228,0.00017,2]
[398511075,1765767045925,-942.0,0.00016771,2]
[398511076,1765767045937,-7177.68430853,0.00017,2]
[398511077,1765767045948,-446.02143128,0.00017,2]
[398511078,1765767045959,-45304.81212432,0.00017,2]
[398511079,1765767045974,-256.68565107,0.00017,2]
[398511080,1765767045985,-2170.09,0.00017,2]
[398511081,1765767045996,-521.7277719,0.00017,2]
[398511082,1765767046015,-498323.15167853,0.00017,2]
[398511083,1765767046026,-728.2599591,0.00017,2]
[398511084,1765767046037,-482.92950368,0.00017,2]
[398511085,1765767046047,-1874.49928913,0.00017,2]
[398511086,1765767046062,-2727.89505997,0.00017,2]
[398511087,1765767046320,-1556.54727354,0.00016899,2]
[398511088,1765767046332,-619.59135763,0.00016899,2]
[398511089,1765767046350,-74.83314098,0.00016899,2]
[398511090,1765767046359,-419.11362737,0.000169,2]
[398511091,1765767046399,-14587.87237899,0.000169,2]
[398511092,1765767046411,-1031.79579359,0.000169,2]
[398511093,1765767046424,-1155.39425,0.000169,2]
[398511095,1765767046434,-850.305,0.000169,2]
[398511107,1765767110246,1958.3,0.000157,2]
[398511108,1765767110268,3041.7,0.000157,2]
[398511116,1765767121964,5000.0,0.000157,2]
[398511117,1765767163923,1958.31,0.000157,2]
[398511118,1765767163947,3041.69,0.000157,2]
[398511129,1765767191274,5000.0,0.000157,2]
[398511131,1765767223681,1958.32,0.00015699,2]
[398511132,1765767223703,1592.696145,0.00015699,2]
[398511139,1765767320996,200.0,0.00015621,2]
[398511166,1765767432560,452.73,0.0001565,3]
[398511173,1765767462810,1000.0,0.00015595,2]
[398511197,1765767517853,1098.0,0.00015452,2]
[398511201,1765767522641,1098.0,0.00015452,2]
[398511203,1765767528936,1098.0,0.00015452,2]
[398511208,1765767532228,1098.0,0.00015452,2]
[398511214,1765767536978,1098.0,0.00015452,2]
[398511243,1765767578048,1000.0,0.00015583,2]
[398511249,1765767606989,2057.28,0.0001558,2]
[398511250,1765767607011,4899.78,0.0001558,2]
[398511289,1765767623855,204.67839256,0.00022,30]
[398511306,1765767656801,296.98767137,0.00022,30]
[398511330,1765767690660,999.0,0.00015567,3]
[398511331,1765767695238,1487.758202,0.00015699,2]
[398511347,1765767744789,208.08070984,0.00015678,2]
[398511369,1765767812251,1600.0,0.00015603,2]
[398511382,1765767863581,-345.44110606,0.00015723,2]
[398511384,1765767867239,-160.09949067,0.00015723,2]
[398511385,1765767868656,225.68,0.00015531,2]
[398511395,1765767921293,150.0,0.00015288,2]
[398511396,1765767921728,150.0,0.00015288,2]
[398511398,1765767924229,150.0,0.00015288,2]
[398511399,1765767925717,129.71108816,0.00015288,2]
[398511400,1765767925741,20.28891184,0.00015288,2]
[398511401,1765767929260,150.0,0.00015288,2]
[398511402,1765767929583,150.0,0.00015288,2]
[398511405,1765767936549,152.37950668,0.00015288,2]
[398511406,1765767936660,151.7757916,0.00015288,2]
[398511408,1765767941984,152.94285502,0.00015288,2]
[398511409,1765767944318,150.0,0.00015288,2]
[398511484,1765768061618,208.08070983,0.00015677,2]
[398511541,1765768167023,228.75,0.00015435,2]
[398511571,1765768232195,-592.45940327,0.00015723,2]
[398511572,1765768232204,-311.17109674,0.00015723,2]
[398511573,1765768232216,-265.00000012,0.00015723,2]
[398511574,1765768232228,-453.16868704,0.00015723,2]
[398511575,1765768232238,-195.0,0.0001575,2]
[398511576,1765768232249,-49.22280296,0.00015777,2]
[398511577,1765768232262,-250.77719704,0.00015777,2]
[398511578,1765768232272,-300.0,0.00015777,2]
[398511579,1765768232281,-166.6085404,0.00015777,2]
[398511580,1765768232293,-300.03857324,0.00015777,2]
[398511581,1765768232315,-733.35288636,0.00015777,2]
[398511583,1765768232325,-500.0,0.00015778,2]
[398511584,1765768232335,-170.24025532,0.00015778,2]
[398511585,1765768232344,-0.25411437,0.00015778,2]
[398511586,1765768232356,-634.47129063,0.00015778,2]
[398511587,1765768232368,-565.274595,0.00015778,2]
[398511588,1765768232378,-163.60697468,0.00015778,2]
[398511589,1765768232388,-1119.87599883,0.00015779,2]
[398511590,1765768232400,-953.31026791,0.00015779,2]
[398511591,1765768232411,-310.31,0.00015779,2]
[398511592,1765768232423,-653.70972726,0.00015779,2]
[398511593,1765768232435,-297.05507805,0.00015779,2]
[398511594,1765768232489,-8446.53892795,0.00015779,2]
[398511595,1765768232498,-150.0,0.00015854,2]
[398511596,1765768232507,-150.0,0.00015854,2]
[398511597,1765768232517,-150.0,0.00015854,2]
[398511598,1765768232527,-150.0,0.00015854,2]
[398511599,1765768232539,-508.40034056,0.000159,2]
[398511600,1765768232549,-212.89458461,0.000159,2]
[398511601,1765768232562,-150.9731724,0.000159,2]
[398511602,1765768232571,-363.867757,0.000159,2]
[398511604,1765768232580,-363.867757,0.0001609,2]
[398511606,1765768232589,-255.63151955,0.00016126,2]
[398511608,1765768232598,-464.88729772,0.00016126,2]
[398511610,1765768232610,-3076.33760228,0.00016126,2]
[398511612,1765768232619,-76.17798087,0.00016149,2]
[398511617,1765768232659,-502.03126221,0.00016149,2]
[398511619,1765768232668,-550.0,0.00016216,2]
[398511621,1765768232678,-300.0,0.00016216,2]
[398511623,1765768232687,-1502.0,0.00016216,2]
[398511625,1765768232696,-157.60922398,0.00016216,2]
[398511627,1765768232706,-166.67,0.00016217,2]
[398511629,1765768232716,-9999.99,0.00016217,2]
[398511630,1765768232725,-5061.73474176,0.00016226,2]
[398511638,1765768235032,-4938.25525824,0.00016226,2]
[398511639,1765768235042,-999.99,0.00016226,2]
[398511640,1765768235052,-951.63598476,0.00016226,2]
[398511641,1765768235071,-6378.37033482,0.00016226,2]
[398511642,1765768235082,-1366.96461276,0.00016226,2]
[398511643,1765768238640,-1303.01906766,0.00016226,2]
[398511644,1765768238650,-150.99,0.00016226,2]
[398511645,1765768238660,-227.40980749,0.00016237,2]
[398511646,1765768238669,-187.18819188,0.00016252,2]
[398511647,1765768238680,-509.81180812,0.00016252,2]
[398511648,1765768238690,-363.867757,0.00016296,2]
[398511649,1765768238699,-201.34,0.00016296,2]
[398511650,1765768238708,-430.52,0.00016298,2]
[398511651,1765768238717,-262.0,0.000163,2]
[398511652,1765768238727,-157.82,0.00016311,2]
[398511653,1765768238735,-488.0,0.0001632,2]
[398511654,1765768238744,-296.0,0.00016352,2]
[398511655,1765768238754,-1098.0,0.00016362,2]
[398511656,1765768238763,-697.0,0.00016382,2]
[398511657,1765768238772,-983.0,0.00016385,2]
[398511658,1765768238782,-1000.0,0.0001639,2]
[398511659,1765768238791,-225.68,0.00016394,2]
[398511660,1765768238803,-324.81324181,0.00016395,2]
[398511661,1765768238812,-500.0,0.00016395,2]
[398511662,1765768238822,-500.0,0.00016395,2]
[398511663,1765768238831,-500.0,0.00016395,2]
[398511664,1765768238840,-259.53291082,0.00016395,2]
[398511665,1765768238850,-500.0,0.00016395,2]
[398511666,1765768238861,-500.0,0.00016395,2]
[398511667,1765768238870,-342.23186363,0.00016395,2]
[398511668,1765768238881,-362.11559948,0.00016395,2]
[398511669,1765768238893,-137.88440052,0.00016395,2]
[398511670,1765768238904,-366.0527829,0.00016395,2]
[398511671,1765768238921,-145.15995018,0.00016395,2]
[398511673,1765768238931,-208.48179988,0.00016395,2]
[398511675,1765768238942,-165.34088994,0.00016396,2]
[398511677,1765768238955,-259.1000001,0.00016396,2]
[398511679,1765768238967,-618.98910996,0.00016396,2]
[398511681,1765768238977,-178.18021967,0.00016396,2]
[398511685,1765768239015,-125.06646529,0.00016396,2]
[398511686,1765768239025,-200.0,0.00016396,2]
[398511687,1765768239037,-151.0,0.00016396,2]
[398511688,1765768239049,-151.0,0.00016396,2]
[398511689,1765768239059,-151.0,0.00016396,2]
[398511690,1765768239071,-500.0,0.00016396,2]
[398511691,1765768239080,-1000.0,0.00016396,2]
[398511692,1765768239090,-500.0,0.00016396,2]
[398511693,1765768239100,-151.0,0.00016396,2]
[398511694,1765768239110,-1000.0,0.00016396,2]
[398511695,1765768239120,-500.0,0.00016396,2]
[398511696,1765768239130,-151.0,0.00016396,2]
[398511697,1765768239140,-1000.0,0.00016396,2]
[398511699,1765768239150,-151.0,0.00016396,2]
[398511700,1765768239160,-1000.0,0.00016396,2]
[398511701,1765768239170,-151.0,0.00016396,2]
[398511702,1765768239181,-1000.0,0.00016396,2]
[398511703,1765768239192,-151.0,0.00016396,2]
[398511704,1765768239202,-1000.0,0.00016396,2]
[398511705,1765768239211,-151.0,0.00016396,2]
[398511706,1765768239221,-1000.0,0.00016396,2]
[398511707,1765768239231,-151.0,0.00016396,2]
[398511708,1765768239242,-151.0,0.00016396,2]
[398511709,1765768239251,-200.0,0.00016396,2]
[398511710,1765768239262,-151.0,0.00016396,2]
[398511711,1765768239272,-200.0,0.00016396,2]
[398511712,1765768239281,-151.0,0.00016396,2]
[398511713,1765768239291,-151.0,0.00016396,2]
[398511714,1765768239300,-151.0,0.00016396,2]
[398511715,1765768239310,-151.0,0.00016396,2]
[398511716,1765768239319,-151.0,0.00016396,2]
[398511717,1765768239330,-151.0,0.00016396,2]
[398511718,1765768239340,-500.0,0.00016396,2]
[398511719,1765768239350,-500.0,0.00016396,2]
[398511720,1765768239359,-151.0,0.00016396,2]
[398511721,1765768239369,-500.0,0.00016396,2]
[398511722,1765768239378,-151.0,0.00016396,2]
[398511723,1765768239388,-500.0,0.00016396,2]
[398511724,1765768239397,-151.0,0.00016396,2]
[398511725,1765768239407,-582.94161171,0.00016396,2]
[398511726,1765768239416,-574.12855637,0.00016396,2]
[398511727,1765768239426,-151.0,0.00016396,2]
[398511728,1765768239435,-151.0,0.00016396,2]
[398511729,1765768239445,-1000.0,0.00016396,2]
[398511730,1765768239454,-1000.0,0.00016396,2]
[398511731,1765768239463,-500.0,0.00016396,2]
[398511732,1765768239473,-1000.0,0.00016396,2]
[398511733,1765768239483,-500.0,0.00016396,2]
[398511734,1765768239493,-1000.0,0.00016396,2]
[398511735,1765768239502,-500.0,0.00016396,2]
[398511736,1765768239512,-1000.0,0.00016396,2]
[398511737,1765768239522,-516.00879335,0.00016396,2]
[398511738,1765768239531,-1000.0,0.00016396,2]
[398511739,1765768239541,-1000.0,0.00016396,2]
[398511740,1765768239550,-982.32106286,0.00016396,2]
[398511741,1765768239560,-1000.0,0.00016396,2]
[398511742,1765768239569,-1000.0,0.00016396,2]
[398511743,1765768239579,-1000.0,0.00016396,2]
[398511744,1765768239588,-1000.0,0.00016396,2]
[398511745,1765768239598,-500.0,0.00016396,2]
[398511746,1765768239608,-500.0,0.00016396,2]
[398511747,1765768239618,-500.0,0.00016396,2]
[398511748,1765768239627,-500.0,0.00016396,2]
[398511749,1765768239636,-500.0,0.00016396,2]
[398511750,1765768239646,-536.62791263,0.00016396,2]
[398511751,1765768239656,-151.0,0.00016396,2]
[398511752,1765768239665,-620.0,0.00016396,2]
[398511753,1765768239674,-151.0,0.00016396,2]
[398511754,1765768239683,-151.0,0.00016396,2]
[398511755,1765768239692,-151.0,0.00016396,2]
[398511756,1765768239701,-151.0,0.00016396,2]
[398511757,1765768239710,-151.0,0.00016396,2]
[398511758,1765768239719,-151.0,0.00016396,2]
[398511759,1765768239728,-151.0,0.00016396,2]
[398511760,1765768239737,-151.0,0.00016396,2]
[398511761,1765768239746,-151.0,0.00016396,2]
[398511762,1765768239756,-151.0,0.00016396,2]
[398511763,1765768239765,-250.0,0.00016396,2]
[398511764,1765768239774,-250.0,0.00016396,2]
[398511765,1765768239783,-250.0,0.00016396,2]
[398511766,1765768239792,-250.0,0.00016396,2]
[398511767,1765768239801,-256.53152749,0.00016396,2]
[398511768,1765768239810,-500.0,0.00016396,2]
[398511769,1765768239821,-500.0,0.00016396,2]
[398511770,1765768239830,-500.0,0.00016396,2]
[398511771,1765768239839,-511.15335703,0.00016396,2]
[398511772,1765768239849,-27198.3035,0.00016406,2]
[398511773,1765768239858,-150.0,0.0001642,2]
[398511774,1765768239868,-150.0,0.0001642,2]
[398511775,1765768239880,-150.0,0.0001642,2]
[398511776,1765768239894,-150.0,0.0001642,2]
[398511777,1765768239903,-475.51025178,0.00016421,2]
[398511778,1765768239913,-500.0,0.00016438,2]
[398511779,1765768239922,-500.0,0.00016438,2]
[398511780,1765768239931,-500.0,0.00016438,2]
[398511781,1765768239942,-500.0,0.00016438,2]
[398511782,1765768239951,-500.0,0.00016438,2]
[398511783,1765768239961,-500.0,0.00016438,2]
[398511784,1765768239971,-500.0,0.00016438,2]
[398511785,1765768239980,-500.0,0.00016438,2]
[398511786,1765768239989,-500.0,0.00016438,2]
[398511787,1765768239998,-500.0,0.00016438,2]
[398511788,1765768240008,-352.66323795,0.00016438,2]
[398511789,1765768240017,-500.0,0.00016438,2]
[398511790,1765768240027,-697.0,0.00016465,2]
[398511791,1765768240037,-500.0,0.00016488,2]
[398511792,1765768240046,-500.0,0.00016488,2]
[398511793,1765768240056,-500.0,0.00016488,2]
[398511794,1765768240067,-500.0,0.00016502,2]
[398511795,1765768240076,-500.0,0.00016502,2]
[398511796,1765768240085,-168.0,0.00016525,2]
[398511797,1765768240095,-543.7,0.00016557,2]
[398511798,1765768240105,-697.0,0.00016594,2]
[398511799,1765768240114,-697.0,0.00016594,2]
[398511800,1765768240123,-1000.0,0.00016599,2]
[398511801,1765768240133,-2500.0,0.0001662,2]
[398511802,1765768240142,-3736.80943202,0.0001666,2]
[398511803,1765768240151,-1043.43,0.0001667,2]
[398511804,1765768240161,-389.0,0.00016684,2]
[398511805,1765768240170,-168.0,0.00016685,2]
[398511806,1765768240181,-500.0,0.00016699,2]
[398511807,1765768240191,-150.0,0.00016699,2]
[398511808,1765768240200,-150.0,0.00016699,2]
[398511809,1765768240209,-984.0,0.00016699,2]
[398511810,1765768240218,-150.0,0.00016699,2]